[Event "XIII Termo-Eko cup 2018"]
[Site "Riga"]
[Date "2018.12.26"]
[Round "9"]
[White "Starostits, Ilmars"]
[Black "Bernotas, Arturs"]
[Result "0-1"]
[ECO "A46"]
[WhiteElo "2458"]
[BlackElo "2403"]
[Annotator "ChessBase"]
[PlyCount "76"]
[EventDate "2018.12.21"]
[EventType "swiss"]
[EventCountry "LAT"]
[SourceTitle "playchess.com"]
[Source "ChessBase"]
[SourceQuality "1"]
[TimeControl "5400+30"]

1. d4 {[%emt 0:00:00]} Nf6 {[%emt 0:02:21]} 2. Nf3 {[%emt 0:00:00]} e6 {[%emt 0:00:30]} 3. Bf4 {[%emt 0:00:00]} c5 {[%emt 0:01:52]} 4. e3 {[%emt 0:00:00]} Nc6 {[%emt 0:01:23]} 5. Nbd2 {[%emt 0:00:49]} d5 {[%emt 0:00:37]} 6. c3 {[%emt 0:00:07]} Bd6 {[%emt 0:00:53]} 7. Bg3 {[%emt 0:00:21]} O-O {[%emt 0:00:28]} 8. Bd3 {[%emt 0:00:09]} b6 {[%emt 0:00:41]} 9. e4 {[%emt 0:00:15]} Be7 {[%emt 0:12:24]} 10. e5 {[%emt 0:10:30]} Nh5 {[%emt 0:10:26]} 11. a3 {[%emt 0:00:07]} g6 {[%emt 0:06:57]} 12. b4 {[%emt 0:00:33]} f5 {[%emt 0:05:22]} 13. exf6 {[%emt 0:01:45]} Bxf6 {[%emt 0:00:32]} 14. b5 {[%emt 0:06:02]} cxd4 {[%emt 0:16:13]} 15. bxc6 {[%emt 0:00:05]} dxc3 {[%emt 0:00:07]} 16. Nb3 {[%emt 0:00:07]} Nxg3 {[%emt 0:00:12]} 17. hxg3 {[%emt 0:00:15]} e5 {[%emt 0:01:44]} 18. c7 {[%emt 0:09:30]} Qd7 {[%emt 0:10:08]} 19. Bc2 {[%emt 0:03:45]} Bb7 {[%emt 0:01:45]} 20. Nh2 {[%emt 0:03:44]} d4 {[%emt 0:05:49]} 21. f3 {[%emt 0:02:49]} e4 {[%emt 0:04:34]} 22. fxe4 {[%emt 0:01:36]} Be5 {[%emt 0:01:06]} 23. Nf3 {[%emt 0:01:28]} Bxg3+ {[%emt 0:00:38]} 24. Kf1 {[%emt 0:05:19]} Qxc7 {[%emt 0:00:53]} 25. Nbxd4 {[%emt 0:13:24]} Rad8 {[%emt 0:01:22]} 26. Rh3 {[%emt 0:02:32]} Be5 {[%emt 0:05:53]} 27. Ke1 {[%emt 0:03:32]} Rxd4 {[%emt 0:02:46]} 28. Qe2 {[%emt 0:08:44]} Rd2 {[%emt 0:00:45]} 29. Bb3+ {[%emt 0:00:04]} Kh8 {[%emt 0:00:25]} 30. Qb5 {[%emt 0:00:09]} Bg3+ {[%emt 0:00:45]} 31. Kf1 {[%emt 0:00:04]} Bxe4 {[%emt 0:01:39]} 32. Kg1 {[%emt 0:00:31]} Bxf3 {[%emt 0:00:32]} 33. gxf3 {[%emt 0:00:06]} Qe5 {[%emt 0:00:28]} 34. Qxe5+ {[%emt 0:00:55]} Bxe5 {[%emt 0:00:03]} 35. Rc1 {[%emt 0:00:51]} Kg7 {[%emt 0:00:30]} 36. Kf1 {[%emt 0:00:51]} Rb2 {[%emt 0:00:18]} 37. Bd5 {[%emt 0:00:14]} Rd8 {[%emt 0:01:01]} 38. Be4 {[%emt 0:01:51]} Bf4 {[%emt 0:00:12]} 0-1

[Event "XIII Termo-Eko cup 2018"]
[Site "Riga"]
[Date "2018.12.26"]
[Round "9"]
[White "Seeman, Tarvo"]
[Black "Berzinsh, Roland"]
[Result "1/2-1/2"]
[ECO "A30"]
[WhiteElo "2394"]
[BlackElo "2409"]
[Annotator "NA"]
[PlyCount "76"]
[EventDate "2018.12.21"]
[EventType "swiss"]
[EventCountry "LAT"]
[SourceTitle "playchess.com"]
[Source "ChessBase"]
[SourceQuality "1"]
[TimeControl "5400+30"]

{[%evp 8,73,29,18,34,45,29,-2,5,-2,0,0,21,0,0,0,0,-14,-9,0,7,0,32767,32767,32767,32767,32767,32767,32767,32767,32767,0,0,0,0,0,0,0,0,0,0,0,-7,-15,0,0,7,11,0,0,0,0,0,0,0,0,0,0,0,0,0,0,5,8,8,0,0,0]} 1. Nf3 {[%emt 0:00:00]} c5 {[%emt 0:00:17]} 2. c4 {[%emt 0:01:18]} Nf6 {[%emt 0:00:21]} 3. g3 {[%emt 0:00:11]} b6 {[%emt 0:00:07]} 4. Bg2 {[%emt 0:00:06]} Bb7 {[%emt 0:00:03]} 5. O-O {[%emt 0:00:15]} e6 {[%emt 0:00:06]} 6. Nc3 {[%emt 0:00:52]} Be7 {[%emt 0:00:09]} 7. b3 {[%emt 0:00:20]} O-O {[%emt 0:00:10]} 8. Bb2 {[%emt 0:00:04]} d5 {[%emt 0:03:22]} 9. e3 {[%emt 0:00:14]} Qc8 {[%emt 0:02:18] A14: English Opening: 1...e6 with b3 by White} 10. Rc1 {[%emt 0:07:33]} Rd8 {[%emt 0:00:39]} 11. cxd5 {[%emt 0:04:52]} Nxd5 {[%emt 0:00:07] LiveBook: 4 Games} 12. d4 {[%emt 0:02:01]} (12. Nxd5 Bxd5 13. d4 a5 14. dxc5 bxc5 15. Nh4 Bxg2 16. Qg4 Bf8 17. Nxg2 {½-½ (64) Artemiev,V (2706)-Kramnik,V (2779) Douglas 2018}) 12... Nxc3 {[%emt 0:01:18]} 13. Bxc3 {[%emt 0:01:33]} Be4 {[%emt 0:00:30] [#]} 14. Nh4 $146 {[%emt 0:08:01]} ({Predecessor:} 14. Ne5 Bxg2 15. Kxg2 Qb7+ 16. Qf3 Qxf3+ 17. Nxf3 {½-½ (32) Robson,R (2663)-Shankland,S (2656) Saint Louis 2016}) 14... Bxg2 {[%emt 0:18:39]} 15. Nxg2 {[%emt 0:00:27]} Nd7 {[%emt 0:00:08]} 16. Qf3 {[%emt 0:04:48]} Qa6 {[%emt 0:00:36]} 17. dxc5 {[%emt 0:01:56]} Nxc5 {[%emt 0:01:39]} 18. Nf4 {[%emt 0:05:27]} g6 {[%emt 0:11:29]} 19. Rc2 {[%emt 0:11:21]} Qb7 {[%emt 0:06:22]} 20. Qxb7 {[%emt 0:05:27]} Nxb7 {[%emt 0:01:20]} 21. Bb2 {[%emt 0:01:32]} Nc5 {[%emt 0:01:04]} 22. h4 {[%emt 0:01:16]} a5 {[%emt 0:00:16]} 23. Kg2 {[%emt 0:07:29]} f6 {[%emt 0:02:58]} 24. Bd4 {[%emt 0:06:25]} Kf7 {[%emt 0:00:17]} 25. Rb1 {[%emt 0:01:21]} Rd7 {[%emt 0:02:13]} 26. Ne2 {[%emt 0:00:59]} Nd3 {[%emt 0:02:11]} 27. Bxb6 {[%emt 0:02:23]} Nb4 {[%emt 0:01:40]} 28. Rc7 {[%emt 0:02:12]} Rxc7 {[%emt 0:11:06]} 29. Bxc7 {[%emt 0:00:02]} Ra7 {[%emt 0:00:04]} 30. Rc1 {[%emt 0:04:31]} e5 {[%emt 0:04:06]} 31. e4 {[%emt 0:01:17]} Nxa2 {[%emt 0:05:00]} 32. Rc4 {[%emt 0:00:07]} Ke6 {[%emt 0:03:06]} 33. f4 {[%emt 0:01:40]} Kd7 {[%emt 0:00:51]} 34. Bb6 {[%emt 0:00:14]} Ra6 {[%emt 0:02:30]} 35. Rc7+ {[%emt 0:02:40]} Kd6 {[%emt 0:00:29]} 36. fxe5+ {[%emt 0:01:20]} fxe5 {[%emt 0:00:06]} 37. Rb7 $11 {[%emt 0:00:09]} h5 {[%emt 0:01:48]} 38. Kf3 {[%emt 0:02:23]} Ke6 {[%emt 0:03:45]} 1/2-1/2

[Event "XIII Termo-Eko cup 2018"]
[Site "Riga"]
[Date "2018.12.26"]
[Round "9"]
[White "Krykun, Yuriy"]
[Black "Meshkovs, Nikita"]
[Result "0-1"]
[ECO "A13"]
[WhiteElo "2323"]
[BlackElo "2542"]
[Annotator "RC"]
[PlyCount "72"]
[EventDate "2018.12.21"]
[EventType "swiss"]
[EventCountry "LAT"]
[SourceTitle "playchess.com"]
[Source "ChessBase"]
[SourceQuality "1"]
[TimeControl "5400+30"]

1. Nf3 {[%emt 0:00:00]} Nf6 {[%emt 0:00:00]} 2. c4 {[%emt 0:00:03]} e6 {[%emt 0:00:08]} 3. g3 {[%emt 0:01:00]} d5 {[%emt 0:00:09]} 4. Bg2 {[%emt 0:00:03]} dxc4 {[%emt 0:00:43]} 5. Qa4+ {[%emt 0:00:33]} Bd7 {[%emt 0:00:45]} 6. Qxc4 {[%emt 0:00:02]} c5 {[%emt 0:00:09]} 7. Ne5 {[%emt 0:01:13]} Qc8 {[%emt 0:00:06]} 8. Qd3 {[%emt 0:00:13]} Nc6 {[%emt 0:00:51]} 9. Nxd7 {[%emt 0:00:06]} Nxd7 {[%emt 0:00:05]} 10. Qb5 {[%emt 0:03:07]} a6 {[%emt 0:07:02]} 11. Qa4 {[%emt 0:00:37]} Nd4 {[%emt 0:00:21]} 12. Qd1 {[%emt 0:02:30]} Be7 {[%emt 0:01:45]} 13. Nc3 {[%emt 0:00:38]} O-O {[%emt 0:00:43]} 14. O-O {[%emt 0:01:04]} Rd8 {[%emt 0:05:40]} 15. b3 {[%emt 0:01:43]} Ra7 {[%emt 0:09:21]} 16. Bb2 {[%emt 0:09:36]} b5 {[%emt 0:01:44]} 17. Rc1 {[%emt 0:01:59]} Rc7 {[%emt 0:10:32]} 18. e3 {[%emt 0:08:40]} Nc6 {[%emt 0:05:52]} 19. Qe2 {[%emt 0:07:06]} Bf6 {[%emt 0:06:14]} 20. d3 {[%emt 0:04:01]} Nb6 {[%emt 0:06:28]} 21. Rfd1 {[%emt 0:03:31]} h6 {[%emt 0:06:39]} 22. h4 {[%emt 0:16:47]} Rdd7 {[%emt 0:05:42]} 23. a4 {[%emt 0:02:29]} b4 {[%emt 0:06:32]} 24. Ne4 {[%emt 0:02:08]} Bxb2 {[%emt 0:00:04]} 25. Qxb2 {[%emt 0:00:05]} Na5 {[%emt 0:00:03]} 26. d4 {[%emt 0:03:28]} cxd4 {[%emt 0:01:36]} 27. Rxc7 {[%emt 0:00:19]} Rxc7 {[%emt 0:01:05]} 28. Qxd4 {[%emt 0:01:34]} Rd7 {[%emt 0:01:24]} 29. Nd6 {[%emt 0:02:11]} Qd8 {[%emt 0:00:07]} 30. Qxb4 {[%emt 0:03:06]} Nc8 {[%emt 0:01:44]} 31. Qb8 {[%emt 0:05:02]} Nxd6 {[%emt 0:01:01]} 32. Qxd8+ {[%emt 0:00:04]} Rxd8 {[%emt 0:00:06]} 33. b4 {[%emt 0:00:02]} Nac4 {[%emt 0:01:34]} 34. Bf1 {[%emt 0:00:29]} Rb8 {[%emt 0:00:59]} 35. e4 {[%emt 0:01:29]} e5 {[%emt 0:00:24]} 36. f4 {[%emt 0:00:31]} f6 {[%emt 0:00:20]} 0-1

[Event "XIII Termo-Eko cup 2018"]
[Site "Riga"]
[Date "2018.12.26"]
[Round "9"]
[White "Bekasovs, Rihards"]
[Black "Tihonov, Jurij"]
[Result "1/2-1/2"]
[ECO "A04"]
[WhiteElo "2206"]
[BlackElo "2399"]
[Annotator "NA"]
[PlyCount "66"]
[EventDate "2018.12.21"]
[EventType "swiss"]
[EventCountry "LAT"]
[SourceTitle "playchess.com"]
[Source "ChessBase"]
[SourceQuality "1"]
[TimeControl "5400+30"]

{[%evp 8,61,23,29,36,1,14,11,10,0,12,7,0,13,32767,32767,32767,32767,32767,32767,32767,38,34,25,27,15,21,15,21,24,20,25,26,19,16,19,20,12,29,11,84,0,9,16,50,29,29,24,29,53,56,56,41,0,0,0]} 1. Nf3 {[%emt 0:00:00]} d6 {[%emt 0:00:00]} 2. d4 {[%emt 0:00:42]} Nf6 {[%emt 0:00:33]} 3. g3 {[%emt 0:00:46]} g6 {[%emt 0:00:09]} 4. Bg2 {[%emt 0:00:06]} Bg7 {[%emt 0:00:07]} 5. O-O {[%emt 0:00:15]} O-O {[%emt 0:00:08]} 6. b3 {[%emt 0:00:43]} e5 {[%emt 0:06:09]} 7. dxe5 {[%emt 0:01:53]} dxe5 {[%emt 0:05:13]} 8. Ba3 {[%emt 0:03:10]} Qxd1 {[%emt 0:04:57] A49: 1 d4 Nf6 2 Nf3 g6 3 g3: Anti-King's Indian systems} 9. Rxd1 {[%emt 0:00:04]} Re8 {[%emt 0:00:07] LiveBook: 48 Games} 10. Nc3 {[%emt 0:03:33]} Na6 {[%emt 0:21:05]} 11. Rac1 $146 {[%emt 0:20:08]} ({Predecessor:} 11. Nd2 Rb8 12. Nb5 Bg4 13. f3 Bd7 14. c4 c6 15. Nd6 Red8 16. N2e4 Nxe4 17. Nxe4 {1-0 (82) Cordova,E (2655)-Sevian,S (2587) Saint Louis 2017}) 11... e4 {[%emt 0:11:37]} 12. Nd4 {[%emt 0:00:55]} c6 {[%emt 0:00:42]} 13. e3 {[%emt 0:02:45]} Bg4 {[%emt 0:00:57]} 14. Rd2 {[%emt 0:11:17]} Rad8 {[%emt 0:00:25]} 15. h3 {[%emt 0:00:27]} Bc8 {[%emt 0:02:51]} 16. Rcd1 {[%emt 0:00:24]} h5 {[%emt 0:07:58]} 17. Nde2 {[%emt 0:14:10]} Rxd2 {[%emt 0:00:06]} 18. Rxd2 {[%emt 0:00:01]} Bf8 {[%emt 0:02:40]} 19. Bxf8 {[%emt 0:03:49]} Kxf8 {[%emt 0:00:06]} 20. a3 {[%emt 0:00:09]} Nc7 {[%emt 0:01:17]} 21. Kf1 {[%emt 0:02:13]} Bf5 {[%emt 0:03:51]} 22. Ke1 {[%emt 0:02:04]} Ke7 {[%emt 0:01:04]} 23. Nd4 {[%emt 0:00:34]} c5 {[%emt 0:07:24]} (23... Ne6 $11) 24. Ndb5 {[%emt 0:05:22]} ({White should try} 24. Nxf5+ $16 gxf5 25. f3) 24... Nxb5 {[%emt 0:00:52]} 25. Nxb5 {[%emt 0:00:01]} a6 {[%emt 0:00:30]} 26. Nd6 {[%emt 0:01:34]} Rb8 {[%emt 0:00:05]} 27. Nxf5+ {[%emt 0:07:00]} gxf5 {[%emt 0:00:05]} 28. h4 {[%emt 0:00:01]} b5 {[%emt 0:04:30]} 29. Bf1 {[%emt 0:00:08]} a5 {[%emt 0:04:55]} 30. c4 {[%emt 0:02:27]} b4 {[%emt 0:03:09]} 31. a4 $11 {[%emt 0:00:25]} Ke6 {[%emt 0:02:52]} 32. Be2 {[%emt 0:00:16]} Rg8 {[%emt 0:00:54]} 33. Rd1 {[%emt 0:02:05]} Ke5 {[%emt 0:01:19]} 1/2-1/2